bitfinex-derivatives/quotes_SOLF0:USTF0_20240920
["timestamp","ask_amount","ask_price","bid_price","bid_amount"]
[1726857528760,20.65,145.15,145.04,10.58]
[1726857528959,10.58,145.08,145.04,10.58]
[1726857529156,10.58,145.08,144.99,3.47158771]
[1726857529349,10.58,145.08,145.03,10.58]
[1726857529962,10.58,145.09,145.05,10.58]
[1726857530350,14.0259,145.09,145.06,3.4464]
[1726857530555,10.58,145.08,145.03,10.58]
[1726857530760,14.0263,145.08,145.05,3.4468]
[1726857531859,14.0263,145.08,145.03,10.58]
[1726857532363,10.58,145.09,145.07,3.4463]
[1726857532566,10.58,145.09,145.05,10.58]
[1726857532865,10.58,145.09,145.07,3.4463]
[1726857533050,3.4459,145.1,145.07,3.4463]
[1726857533254,10.58,145.09,145.07,3.4463]
[1726857533455,14.026,145.09,145.06,3.4465]
[1726857533853,3.4467,145.06,145.04,3.447]
[1726857534059,10.58,145.05,145.01,10.58]
[1726857534268,10.58,145.04,144.99,10.58]
[1726857534465,10.58,145.04,145.0,10.58]
[1726857535456,14.0269,145.05,145.0,10.58]
[1726857535665,3.4469,145.05,145.02,3.4474]
[1726857535970,14.0269,145.05,145.0,10.58]
[1726857536168,24.1413422,145.11,145.01,10.58]
[1726857536368,24.1413422,145.11,145.04,10.58]
[1726857536672,10.58,145.05,145.02,3.4474]
[1726857537070,10.58,145.05,145.01,10.58]
[1726857537367,10.58,145.05,145.02,3.4474]
[1726857537565,14.027,145.05,145.02,3.4474]
[1726857537762,24.1413422,145.11,145.02,3.4474]
[1726857537763,10.58,145.07,145.02,10.58]
[1726857538264,10.58,145.07,145.03,3.4472]
[1726857539062,14.0265,145.07,145.03,3.4472]
[1726857539255,14.0265,145.07,145.04,3.447]
[1726857539461,24.1413422,145.11,145.03,10.58]
[1726857539656,20.65,145.17,145.07,10.58]
[1726857539868,10.58,145.12,145.07,10.58]
[1726857540173,14.0253,145.12,145.07,10.58]
[1726857540361,10.58,145.11,145.08,3.446]
[1726857540566,10.58,145.09,145.0,6.8957]
[1726857540876,10.58,145.09,145.04,10.58]
[1726857541062,10.58,145.05,144.98,1.3625]
[1726857541265,10.3321,145.18,144.98,1.3625]
[1726857541266,10.58,145.02,144.98,1.3625]
[1726857541770,10.58,145.03,145.0,3.448]
[1726857542471,14.0275,145.03,145.0,3.448]
[1726857542669,20.65,145.15,145.0,10.58]
[1726857542868,10.58,145.04,145.0,10.58]
[1726857543067,10.58,145.03,144.99,3.4482]
[1726857543266,10.58,145.02,144.99,3.4482]
[1726857543463,3.4476,145.03,144.99,10.58]
[1726857543871,3.4476,145.03,145.0,3.448]
[1726857544069,14.0276,145.02,144.98,13.3147]
[1726857544371,10.58,145.01,144.98,2.7347]
[1726857544572,10.58,145.01,144.98,6.183]
[1726857545473,14.0279,145.01,144.98,6.183]
[1726857545975,10.58,145.01,144.98,2.7347]
[1726857546169,14.0279,145.01,144.98,2.7347]
[1726857546870,14.0279,145.01,144.98,6.1831]
[1726857548077,10.58,145.0,144.98,6.1831]
[1726857548581,3.4479,145.01,144.98,6.1831]
[1726857548770,3.4479,145.01,144.99,3.4483]
[1726857549076,3.4481,145.0,144.98,2.7347]
[1726857549379,3.42617051,145.06,144.98,1.3722]
[1726857549380,10.58,144.99,144.98,1.3722]
[1726857549578,3.4487,144.98,144.92,1.4335]
[1726857549874,10.58,144.98,144.95,3.4491]
[1726857550078,10.58,144.96,144.92,4.1219]
[1726857550275,10.58,144.96,144.93,3.4497]
[1726857550776,14.0291,144.96,144.93,3.4497]
[1726857550976,10.58,144.96,144.94,3.4494]
[1726857551181,10.58,144.97,144.92,14.7019]
[1726857551867,10.58,144.97,144.95,3.4492]
[1726857552067,24.07617051,145.06,144.96,10.58]
[1726857552281,10.58,145.02,144.97,10.58]
[1726857552479,10.58,145.01,144.96,10.58]
[1726857552880,3.4482,145.0,144.97,3.4486]
[1726857553080,14.0282,145.0,144.97,3.4486]
[1726857553284,14.0282,145.0,144.96,10.58]
[1726857553782,14.0282,145.0,144.97,3.4486]
[1726857553986,14.0282,145.0,144.96,10.58]
[1726857554179,14.0282,145.0,144.97,3.4487]
[1726857554481,14.0279,145.01,144.96,10.58]
[1726857555086,14.0279,145.01,144.98,3.4484]
[1726857557075,14.0279,145.01,144.96,10.58]
[1726857557076,20.65,145.1,144.97,10.58]
[1726857557278,10.58,145.02,144.97,11.9382]
[1726857557681,14.0277,145.02,144.99,3.4482]
[1726857558488,20.65,145.1,144.99,10.58]
[1726857558682,10.58,145.04,145.0,10.58]
[1726857559084,14.0273,145.04,145.01,3.4477]
[1726857559479,14.0273,145.04,145.0,10.58]
[1726857559687,24.09105752,145.1,145.01,10.58]
[1726857559882,10.58,145.06,145.01,10.58]
[1726857560286,14.0268,145.06,145.03,3.4472]
[1726857560689,14.0269,145.05,145.03,3.4472]
[1726857561401,3.4469,145.05,145.03,3.4472]
[1726857561905,14.0267,145.06,145.03,3.4472]
[1726857562093,10.58,145.06,145.04,3.4469]
[1726857562398,10.58,145.07,145.04,3.4469]
[1726857563396,14.0265,145.07,145.04,3.4469]
[1726857563600,3.37528446,145.1,145.06,3.4466]
[1726857563804,20.65,145.17,145.06,10.58]
[1726857563999,1.02577867,145.09,145.08,9.33474963]
[1726857564207,1.02577867,145.09,145.08,12.78094963]
[1726857564895,1.83685126,145.1,145.09,3.4459]
[1726857565105,1.83685126,145.1,145.09,14.0259]
[1726857566007,1.89183029,145.12,145.11,3.4454]
[1726857566905,12.47183029,145.12,145.09,1.3156]
[1726857567216,10.58,145.11,145.09,1.3156]
[1726857567505,10.58,145.11,145.09,4.7615]
[1726857567701,15.91713029,145.12,145.09,4.7615]
[1726857567897,3.4456,145.11,145.09,1.3156]
[1726857568100,10.58,145.1,145.06,10.58]
[1726857568300,10.58,145.1,145.05,12.0073]
[1726857568507,10.58,145.09,145.05,1.4273]
[1726857569103,14.0261,145.09,145.05,1.4273]
[1726857569307,10.58,145.07,145.05,1.4273]
[1726857569707,14.0263,145.08,145.05,4.8739]
[1726857569917,3.4463,145.08,145.05,1.4273]
[1726857570215,3.446,145.09,145.06,3.4465]
[1726857570404,3.446,145.09,145.05,1.4273]
[1726857570605,1.89183029,145.12,145.05,1.4273]
[1726857571306,3.4459,145.1,145.05,1.4273]
[1726857571515,16.54,145.11,145.05,1.4273]
[1726857571898,3.4463,145.08,145.05,4.874]
[1726857572105,16.54,145.09,145.03,1.3116]
[1726857573212,3.4463,145.08,145.03,1.3116]
[1726857573406,16.54,145.09,145.03,1.3116]
[1726857573918,16.54,145.09,145.04,3.447]
[1726857575116,3.4465,145.07,145.04,3.447]
[1726857577619,16.54,145.09,145.01,1.3392]
[1726857578013,3.4462,145.08,145.02,16.54]
[1726857578311,3.4462,145.08,145.05,3.4468]
[1726857578508,3.4462,145.08,145.02,16.54]
[1726857578713,1.89183029,145.12,145.04,16.54]
[1726857578908,1.89183029,145.12,145.06,16.54]
[1726857579319,1.89183029,145.12,145.08,3.4461]
[1726857579718,1.89183029,145.12,145.09,3.4458]
[1726857580309,5.33713029,145.12,145.09,3.4458]
[1726857581218,1.89183029,145.12,145.08,16.54]
[1726857582017,1.89183029,145.12,145.11,3.4454]
[1726857590018,1.89183029,145.12,145.11,14.0354]
[1726857598930,2.70320932,145.14,145.13,3.445]
[1726857599127,2.70320932,145.14,145.13,14.035]
[1726857600225,2.70320932,145.14,145.11,10.59]
[1726857601031,2.70320932,145.14,145.13,10.59]
[1726857602639,2.70320932,145.14,145.13,14.035]
[1726857603837,2.29188259,145.16,145.15,3.4445]
[1726857604140,2.74643047,145.17,145.15,10.59]
[1726857604438,2.74643047,145.17,145.16,14.0343]
[1726857604837,3.4445,145.15,145.08,6.26629012]
[1726857605036,10.59,145.16,145.12,10.59]
[1726857605338,3.445,145.13,145.12,10.59]
[1726857605539,10.59,145.16,145.12,10.59]
[1726857606530,10.59,145.14,145.09,1.3014]
[1726857606741,10.59,145.14,145.1,10.59]
[1726857607135,3.4451,145.13,145.1,10.59]
[1726857607841,2.74643047,145.17,145.12,10.59]
[1726857607842,10.59,145.16,145.12,10.59]
[1726857608143,2.74643047,145.17,145.1,16.55]
[1726857608343,2.74643047,145.17,145.12,3.4451]
[1726857608641,19.29643047,145.17,145.09,1.3014]
[1726857608834,3.4452,145.12,145.09,1.3014]
[1726857609039,19.29643047,145.17,145.09,1.3014]
[1726857609435,16.55,145.15,145.06,154.37]
[1726857609630,3.37284631,145.14,145.06,154.37]
[1726857609832,3.4456,145.11,145.08,3.446]
[1726857610032,16.55,145.15,145.06,154.37]
[1726857610533,3.4454,145.12,145.09,3.4458]
[1726857611132,16.55,145.13,145.04,16.55]
[1726857611437,1.3446,145.12,145.02,16.55]
[1726857611640,3.4461,145.09,145.06,3.4465]
[1726857611830,1.3446,145.12,145.04,16.55]
[1726857613338,3.446,145.09,145.04,16.55]
[1726857613647,1.3446,145.12,145.04,16.55]
[1726857613940,16.55,145.11,145.02,16.55]
[1726857614830,3.4462,145.08,145.05,3.4467]
[1726857615230,16.55,145.11,145.05,3.4467]
[1726857615446,3.4465,145.07,145.04,3.447]
[1726857615643,3.4465,145.07,145.02,16.55]
[1726857615846,3.4463,145.08,145.05,3.4467]
[1726857617045,3.4464,145.07,145.05,3.4467]
[1726857618143,3.4463,145.08,145.05,3.4467]
[1726857619045,16.55,145.11,145.04,3.447]
[1726857619443,3.4466,145.07,145.04,3.447]
[1726857620340,2.6475,145.12,145.04,16.55]
[1726857621450,3.446,145.09,145.04,16.55]
[1726857621939,3.446,145.09,145.07,3.4464]
[1726857622340,3.4456,145.11,145.06,16.55]
[1726857622546,3.4456,145.11,145.08,3.446]
[1726857622946,3.4453,145.12,145.06,16.55]
[1726857623245,3.4453,145.12,145.09,3.4458]
[1726857623545,1.323,145.16,145.1,16.55]
[1726857623748,1.389,145.18,145.13,3.4449]
[1726857624049,3.4444,145.16,145.13,3.4449]
[1726857625039,16.55,145.18,145.1,16.55]
[1726857625241,16.55,145.18,145.08,17.9211]
[1726857625647,16.55,145.18,145.11,3.4454]
[1726857626251,3.4449,145.14,145.11,3.4454]
[1726857628343,16.55,145.18,145.11,3.4454]
[1726857629458,3.4449,145.14,145.11,3.4454]
[1726857630144,3.4447,145.15,145.1,16.55]
[1726857630552,4.77488547,145.19,145.12,16.55]
[1726857630753,6.19053047,145.17,145.14,3.4446]
[1726857631054,2.74643047,145.17,145.12,16.55]
[1726857631360,2.74643047,145.17,145.08,4.78965016]
[1726857631361,2.74643047,145.17,145.14,16.55]
[1726857631861,2.74643047,145.17,145.15,3.4443]
[1726857634458,6.19043047,145.17,145.15,3.4443]
[1726857635257,3.4443,145.16,145.14,3.4447]
[1726857635756,2.74643047,145.17,145.1,16.55]
[1726857635954,2.74643047,145.17,145.08,21.33965016]
[1726857636151,16.55,145.16,145.08,21.33965016]
[1726857636352,3.445,145.13,145.1,3.4456]
[1726857637260,3.445,145.13,145.11,3.4454]
[1726857637447,3.35882596,145.14,145.07,1.3478]
[1726857637651,17.9414,145.16,145.09,3.4458]
[1726857637855,16.55,145.14,145.09,3.4458]
[1726857638060,16.55,145.12,145.02,1.3662]
[1726857638255,16.55,145.12,145.07,3.4462]
[1726857638455,16.55,145.12,145.04,16.55]
[1726857638659,19.92975435,145.14,145.06,16.55]
[1726857638962,19.92975435,145.14,145.09,3.4457]
[1726857639263,3.4454,145.12,145.09,3.4457]
[1726857639458,19.92975435,145.14,145.06,16.55]
[1726857639665,16.55,145.13,145.04,16.55]
[1726857641268,3.446,145.09,145.06,3.4465]
[1726857641458,16.55,145.13,145.04,16.55]
[1726857642366,3.4459,145.1,145.07,3.4464]
[1726857642567,16.55,145.13,145.07,3.4464]
[1726857642868,3.446,145.09,145.06,3.4465]
[1726857644059,3.446,145.09,145.07,3.4463]
[1726857645565,3.4458,145.1,145.07,3.4463]
[1726857646668,3.4458,145.1,145.08,3.4461]
[1726857646869,3.4455,145.11,145.06,16.55]
[1726857647370,19.95491211,145.14,145.09,3.4457]
[1726857647670,3.4453,145.12,145.09,3.4457]
[1726857648459,3.4451,145.13,145.1,3.4455]
[1726857648660,19.3441,145.16,145.08,20.00602426]
[1726857648970,3.4453,145.12,145.1,3.4456]
[1726857652071,17.9414,145.16,145.09,1.3659]
[1726857652473,3.4452,145.13,145.1,3.4455]
[1726857652974,19.96075468,145.15,145.09,4.8117]
[1726857653269,19.96075468,145.15,145.09,1.3659]
[1726857653661,3.4456,145.11,145.09,1.3659]
[1726857654369,3.4456,145.11,145.09,4.8118]
[1726857655670,3.4453,145.12,145.1,14.0257]
[1726857656269,3.4447,145.14,145.12,3.4451]
[1726857656469,3.41075468,145.15,145.12,3.4451]
[1726857656470,2.74643047,145.17,145.12,10.58]
[1726857656666,13.32643047,145.17,145.12,10.58]
[1726857656866,13.32643047,145.17,145.13,3.4448]
[1726857656867,3.4446,145.15,145.13,3.4448]
[1726857657177,10.58,145.16,145.11,10.58]
[1726857657679,3.4449,145.14,145.11,14.0253]
[1726857657865,2.74643047,145.17,145.11,3.4453]
[1726857658376,3.4449,145.14,145.11,3.4453]
[1726857659378,3.4449,145.14,145.12,3.4452]
[1726857660380,3.4446,145.15,145.13,3.4449]
[1726857661272,3.4446,145.15,145.12,3.4451]
[1726857662191,2.74643047,145.17,145.11,16.55]
[1726857662482,2.74643047,145.17,145.12,16.55]
[1726857663173,6.19053047,145.17,145.15,3.4444]
[1726857663473,6.19053047,145.17,145.12,16.55]
[1726857664279,6.19053047,145.17,145.14,3.4445]
[1726857664669,3.4443,145.16,145.14,3.4445]
[1726857666884,6.19053047,145.17,145.15,3.4445]
[1726857667078,2.74643047,145.17,145.16,16.55]
[1726857667278,3.36698547,145.19,145.16,16.55]
[1726857667585,3.36698547,145.19,145.17,1.4166]
[1726857667980,6.81058547,145.19,145.17,4.8605]
[1726857668389,3.36698547,145.19,145.17,1.4166]
[1726857668782,3.36698547,145.19,145.18,3.4438]
[1726857669781,3.36698547,145.19,145.18,19.9938]
[1726857670181,1.21058547,145.19,145.18,19.9938]
[1726857672290,1.21058547,145.19,145.18,3.4438]
[1726857681286,1.21058547,145.19,145.18,14.0238]
[1726857683091,1.21058547,145.19,145.13,1.365]
[1726857683292,11.79058547,145.19,145.15,10.58]
[1726857683598,15.23418547,145.19,145.16,3.444]
[1726857684294,15.23418547,145.19,145.17,3.444]
[1726857686401,4.65418547,145.19,145.17,3.444]
[1726857686693,1.21058547,145.19,145.18,10.58]
[1726857687087,1.21058547,145.19,145.18,14.0238]
[1726857690506,3.11585851,145.21,145.2,3.4433]
[1726857690708,1.31927066,145.23,145.2,10.58]
[1726857691003,3.62473326,145.24,145.22,10.58]
[1726857691300,3.62473326,145.24,145.23,10.58]
[1726857691795,3.62473326,145.24,145.23,14.0226]
[1726857691990,3.62473326,145.24,145.23,17.39818361]
[1726857696810,1.46883326,145.24,145.23,17.39818361]
[1726857697304,1.46883326,145.24,145.23,14.0226]
[1726857698307,4.239927,145.26,145.25,3.4421]
[1726857698610,5.64332505,145.28,145.25,10.58]
[1726857698811,5.64332505,145.28,145.27,14.0216]
[1726857702006,9.08492505,145.28,145.25,14.022]
[1726857702406,3.4417,145.27,145.25,10.58]
[1726857703207,3.4417,145.27,145.25,14.0221]
[1726857703407,9.08482505,145.28,145.25,14.0221]
[1726857703607,5.64332505,145.28,145.25,10.58]
[1726857703803,5.64332505,145.28,145.26,14.0217]
[1726857704205,5.64332505,145.28,145.27,10.58]
[1726857704415,5.64332505,145.28,145.27,14.0216]
[1726857704616,5.64332505,145.28,145.27,3.4416]
[1726857704817,5.64332505,145.28,145.27,14.0216]
[1726857706912,5.64332505,145.28,145.22,1.4371]
[1726857707114,5.64332505,145.28,145.26,10.58]
[1726857707914,5.64332505,145.28,145.27,3.4416]
[1726857708718,5.64332505,145.28,145.27,14.0216]
[1726857715120,5.31451146,145.3,145.29,3.4412]
[1726857715323,5.31451146,145.3,145.29,14.0212]
[1726857715516,4.83599098,145.31,145.3,3.4409]
[1726857715717,4.83599098,145.31,145.3,14.0209]
[1726857717026,5.12339106,145.33,145.32,3.4405]
[1726857717227,5.12339106,145.33,145.32,14.0205]
[1726857720622,5.12339106,145.33,145.27,1.345]
[1726857720914,5.12339106,145.33,145.32,10.58]
[1726857721114,5.12339106,145.33,145.32,14.0205]
[1726857723128,5.12339106,145.33,145.31,3.4406]
[1726857723515,3.4407,145.32,145.27,1.345]
[1726857723718,3.4407,145.32,145.29,3.4409]
[1726857724222,3.4407,145.32,145.28,10.58]
[1726857724429,3.4407,145.32,145.29,3.4411]
[1726857725332,3.4407,145.32,145.3,10.58]
[1726857725531,3.4407,145.31,145.3,10.58]
[1726857725727,15.70339106,145.33,145.3,10.58]
[1726857726234,15.70339106,145.33,145.28,3.4414]
[1726857726434,10.58,145.32,145.28,10.58]
[1726857726929,3.4408,145.31,145.28,10.58]
[1726857727832,3.4408,145.31,145.28,14.0213]
[1726857728529,3.4406,145.32,145.29,14.0211]
[1726857729437,3.4406,145.32,145.29,10.58]
[1726857729836,3.4406,145.32,145.29,14.0212]
[1726857730535,6.43369106,145.33,145.22,2.7704]
[1726857730737,10.58,145.28,145.24,10.58]
[1726857731035,3.4418,145.27,145.24,10.58]
[1726857731232,14.0218,145.27,145.23,10.58]
[1726857731422,10.58,145.27,145.23,10.58]
[1726857731628,14.0218,145.27,145.24,3.4423]
[1726857732138,3.4418,145.27,145.24,3.4423]
[1726857733239,1.4271,145.31,145.23,16.52]
[1726857733740,1.4271,145.31,145.27,3.4414]
[1726857734242,4.868,145.31,145.27,3.4415]
[1726857734548,1.4271,145.31,145.23,16.52]
[1726857734742,1.4271,145.31,145.26,3.4419]
[1726857734743,3.4413,145.29,145.26,3.4419]
[1726857735345,3.4415,145.28,145.25,3.4421]
[1726857735548,3.4415,145.28,145.23,16.52]
[1726857735744,1.4271,145.31,145.23,16.52]
[1726857736350,3.4413,145.29,145.25,3.442]
[1726857736851,3.4413,145.29,145.26,3.4418]
[1726857737252,1.4271,145.31,145.25,16.52]
[1726857737554,6.43369106,145.33,145.27,16.52]
[1726857739139,3.4405,145.32,145.29,3.441]
[1726857739857,3.4407,145.31,145.29,3.441]
[1726857740349,3.4407,145.31,145.28,3.4413]
[1726857740749,6.43369106,145.33,145.28,3.4413]
[1726857741346,3.4409,145.31,145.28,3.4413]
[1726857741959,3.4409,145.31,145.29,3.4412]
[1726857742159,3.4406,145.32,145.27,16.52]
[1726857743756,9.87399106,145.33,145.29,16.52]
[1726857743957,6.43369106,145.33,145.29,16.52]
[1726857744160,6.43369106,145.33,145.31,3.4405]
[1726857744951,5.12339106,145.33,145.31,3.4405]
[1726857746360,8.56369106,145.33,145.31,3.4405]
[1726857747259,5.12339106,145.33,145.27,16.52]
[1726857747957,3.4408,145.31,145.29,3.441]
[1726857749062,3.4408,145.31,145.28,3.4413]
[1726857751464,3.4406,145.32,145.29,3.4411]
[1726857751961,3.4406,145.32,145.28,3.47075017]
[1726857752762,8.56369106,145.33,145.3,3.4409]
[1726857753467,8.56369106,145.33,145.29,16.52]
[1726857753468,5.12339106,145.33,145.29,16.52]
[1726857753865,5.12339106,145.33,145.32,3.4405]
[1726857754065,5.12339106,145.33,145.32,14.0105]
[1726857754466,5.90677799,145.35,145.34,3.44]
[1726857754664,5.90677799,145.35,145.34,14.01]
[1726857755264,7.01268274,145.37,145.36,3.4395]
[1726857755573,7.01268274,145.37,145.36,14.0095]
[1726857755973,7.01268274,145.37,145.36,19.9495]
[1726857756273,7.01268274,145.37,145.36,23.30278105]
[1726857757170,6.84553607,145.38,145.37,3.4393]
[1726857757369,7.53037936,145.4,145.36,19.86328105]
[1726857757567,7.53037936,145.4,145.39,16.51]
[1726857757873,7.53037936,145.4,145.39,19.9488]
[1726857758171,8.60939742,145.42,145.41,3.4383]
[1726857758478,1.3703,145.46,145.41,16.51]
[1726857758774,1.3703,145.46,145.41,3.4383]
[1726857758963,1.3703,145.46,145.39,19.92897097]
[1726857759164,3.4377,145.44,145.39,3.41897097]
[1726857759370,3.4377,145.44,145.4,3.4384]
[1726857760173,3.4377,145.44,145.39,3.47988999]
[1726857760174,3.4377,145.44,145.41,3.4383]
[1726857761073,1.3703,145.46,145.42,3.438]
[1726857761773,4.8076,145.46,145.43,3.4378]
[1726857762170,1.3703,145.46,145.43,3.4378]
[1726857762572,1.3703,145.46,145.42,3.438]
[1726857762772,3.4372,145.46,145.42,3.438]
[1726857763575,1.3325,145.47,145.39,19.98988999]
[1726857763576,3.4374,145.45,145.39,19.98988999]
[1726857763970,3.4374,145.45,145.41,3.4381]
[1726857764274,3.4374,145.45,145.39,19.98988999]
[1726857764477,3.4372,145.46,145.39,19.98988999]
[1726857764778,3.4372,145.46,145.42,3.4379]
[1726857765175,27.5284,145.59,145.48,3.4365]
[1726857765375,27.5284,145.59,145.4,16.51]
[1726857765376,16.51,145.54,145.46,3.45860266]
[1726857765575,19.90121166,145.54,145.45,16.51]
[1726857766171,19.90121166,145.54,145.46,3.48714069]
[1726857766172,3.4359,145.52,145.46,3.48714069]
[1726857767166,1.334,145.58,145.47,16.51]
[1726857767467,34.2761,145.87,145.51,16.51]
[1726857767468,16.51,145.61,145.51,16.51]
[1726857767771,3.4343,145.59,145.55,3.435]
[1726857768170,19.90258698,145.61,145.53,16.51]
[1726857768171,3.434,145.6,145.56,3.4346]
[1726857768576,3.434,145.6,145.53,16.51]
[1726857768982,19.9437,145.61,145.53,16.51]
[1726857769476,3.4339,145.6,145.53,16.51]
[1726857769668,16.51,145.61,145.53,16.51]
[1726857769874,16.51,145.61,145.56,3.4346]
[1726857770173,19.9437,145.61,145.56,3.4346]
[1726857770374,19.9437,145.61,145.53,16.51]
[1726857770873,24.0295204,145.62,145.49,1.4154]
[1726857771076,24.0295204,145.62,145.52,3.4357]
[1726857771077,16.51,145.55,145.52,3.4357]
[1726857771273,16.51,145.55,145.48,1.331]
[1726857772475,16.51,145.55,145.47,16.51]
[1726857772878,16.51,145.54,145.46,3.35830126]
[1726857773075,4.0778,145.56,145.46,3.35830126]
[1726857773076,3.4359,145.52,145.46,3.35830126]
[1726857773881,3.4359,145.52,145.45,16.51]
[1726857774180,16.51,145.53,145.47,16.51]
[1726857774181,3.4355,145.53,145.47,16.51]
[1726857774773,3.4355,145.53,145.49,3.4364]
[1726857775373,3.4358,145.52,145.46,3.4682796]
[1726857775580,3.4358,145.52,145.45,16.51]
[1726857775775,3.436,145.51,145.45,16.51]
[1726857776078,3.436,145.51,145.45,19.86383875]
[1726857776976,3.436,145.51,145.47,3.4368]
[1726857777285,16.51,145.54,145.47,3.4368]
[1726857778381,16.51,145.54,145.48,3.4367]
[1726857778784,3.4361,145.51,145.48,3.4367]
[1726857778973,16.51,145.54,145.48,3.4367]
[1726857779175,3.4361,145.51,145.48,3.4367]
[1726857779378,20.66,145.62,145.49,16.51]
[1726857779583,19.3437,145.59,145.49,16.51]
[1726857779787,3.4349,145.56,145.49,16.51]
[1726857780288,3.42899367,145.58,145.49,16.51]
[1726857780488,3.435,145.55,145.52,3.4356]
[1726857780790,16.51,145.57,145.49,16.51]
[1726857781083,3.4352,145.55,145.51,3.4359]
[1726857781283,3.4352,145.55,145.49,16.51]
[1726857781689,2.8337,145.59,145.51,16.51]
[1726857782385,3.4344,145.58,145.55,3.4349]
[1726857783692,2.8337,145.59,145.51,16.51]
[1726857784188,3.4345,145.58,145.51,16.51]
[1726857785079,20.66,145.71,145.57,16.51]
[1726857785284,1.3797,145.67,145.58,16.51]
[1726857785488,1.3797,145.67,145.62,3.4332]
[1726857785489,3.4326,145.66,145.62,3.4332]
[1726857785994,3.4326,145.66,145.6,16.51]
[1726857786187,1.3797,145.67,145.55,1.4247]
[1726857786188,1.3797,145.67,145.62,16.51]
[1726857786975,1.3797,145.67,145.56,6.8695]
[1726857786976,2.7442,145.7,145.64,16.51]
[1726857787182,3.4319,145.69,145.65,3.4325]
[1726857787380,16.51,145.69,145.6,16.51]
[1726857787987,3.4326,145.66,145.63,3.433]
[1726857788186,2.7442,145.7,145.6,26.37]
[1726857788579,2.7442,145.7,145.63,26.37]
[1726857789899,6.1758,145.7,145.67,3.432]
[1726857790288,2.7442,145.7,145.63,26.37]
[1726857790593,2.7442,145.7,145.62,3.43290756]
[1726857790594,1.3453,145.74,145.65,26.37]
[1726857791292,1.3453,145.74,145.67,3.432]
[1726857791493,1.3453,145.74,145.65,26.37]
[1726857791884,1.3453,145.74,145.67,3.4321]
[1726857792594,1.3453,145.74,145.68,3.4319]
[1726857792993,3.4313,145.71,145.65,26.37]
[1726857793189,1.3453,145.74,145.69,3.4317]
[1726857793592,3.4311,145.72,145.69,3.4317]
[1726857793898,3.4311,145.72,145.7,3.4315]
[1726857794093,3.4309,145.73,145.7,3.4315]
[1726857794298,1.3453,145.74,145.65,26.37]
[1726857794603,1.3708,145.75,145.68,26.37]
[1726857794798,4.8013,145.75,145.71,3.4311]
[1726857795098,4.8013,145.75,145.68,26.37]
[1726857795299,1.3708,145.75,145.68,26.37]
[1726857795493,1.3708,145.75,145.65,26.37]
[1726857796495,3.431,145.72,145.68,3.4318]
[1726857796796,1.3708,145.75,145.65,26.37]
[1726857797193,3.4309,145.73,145.7,3.4314]
[1726857797686,1.3708,145.75,145.7,3.4314]
[1726857798298,3.4309,145.73,145.7,3.4314]
[1726857798991,3.431,145.72,145.69,3.4316]
[1726857799194,1.3708,145.75,145.67,26.37]
[1726857799592,3.4309,145.73,145.69,3.4316]
[1726857799905,1.3708,145.75,145.65,26.37]
[1726857800602,3.4314,145.71,145.68,3.4318]